fUST/lending_fUST_20240606
["ID","MTS","AMOUNT","RATE_DAILY","PERIOD"]
[328646278,1717664569345,759.55453663,9.999e-05,2]
[328646333,1717665034743,154.95351395,9.999e-05,2]
[328646366,1717665038535,-556.27725714,0.000189,2]
[328646367,1717665038545,-471.94717193,0.0002,2]
[328646368,1717665038555,-1354.45712807,0.0002,2]
[328646369,1717665038564,-167.631425,0.00020494,2]
[328646370,1717665038573,-275.1647711,0.0002074,2]
[328646371,1717665038583,-150.0,0.00021078,2]
[328646372,1717665038592,-150.069,0.00021078,2]
[328646373,1717665038601,-173.839,0.00021078,2]
[328646374,1717665038611,-152.693,0.00021078,2]
[328646375,1717665038620,-498.0,0.00021078,2]
[328646377,1717665038629,-150.0,0.00021078,2]
[328646378,1717665038638,-24900.0,0.00021121,2]
[328646390,1717665038744,-166.666666,0.00021644,2]
[328646391,1717665038753,-171.527901,0.00021727,2]
[328646392,1717665038763,-167.868487,0.00021918,2]
[328646393,1717665038772,-624.26526648,0.00022672,2]
[328646394,1717665038781,-168.4955978,0.00022673,2]
[328646395,1717665038790,-167.868487,0.00022773,2]
[328646396,1717665038799,-3859.55051923,0.00023,2]
[328646397,1717665038808,-354.93619962,0.00023,2]
[328646398,1717665038817,-204.81154491,0.00023527,6]
[328646399,1717665038826,-167.868487,0.00023627,2]
[328646400,1717665038837,-155.07640114,0.00023653,2]
[328646401,1717665038851,-168.49559779,0.0002373,2]
[328646402,1717665038860,-556.27725714,0.000239,2]
[328646403,1717665038869,-285.0,0.00024,2]
[328646404,1717665038878,-150.0,0.00024078,2]
[328646405,1717665038889,-762.53852719,0.000244,2]
[328646406,1717665038899,-600.0,0.00024479,2]
[328646407,1717665038908,-167.868487,0.00024482,2]
[328646408,1717665038918,-178.84682982,0.0002455,2]
[328646409,1717665038928,-178.84682981,0.00024613,2]
[328646410,1717665038937,-156.49544705,0.0002465,2]
[328646411,1717665038946,-200.0,0.00024658,15]
[328646412,1717665038955,-178.84682981,0.00024675,2]
[328646413,1717665038965,-178.84682981,0.00024738,2]
[328646414,1717665038974,-168.49559779,0.00024787,2]
[328646415,1717665038983,-170.92383084,0.00024798,2]
[328646416,1717665038992,-170.92383082,0.00024799,2]
[328646417,1717665039001,-270.0,0.000248,2]
[328646418,1717665039010,-178.84682981,0.000248,2]
[328646419,1717665039020,-170.92383082,0.000248,2]
[328646420,1717665039030,-166.21397511,0.00024889,2]
[328646421,1717665039040,-353.064365,0.00024889,2]
[328646422,1717665039049,-500.0,0.00024889,2]
[328646423,1717665039059,-500.0,0.00024889,2]
[328646424,1717665039068,-266.91153852,0.00024889,2]
[328646425,1717665039078,-500.0,0.00024889,2]
[328646426,1717665039087,-500.0,0.00024889,2]
[328646427,1717665039097,-500.0,0.00024889,2]
[328646428,1717665039106,-541.65062767,0.00024889,2]
[328646429,1717665039116,-500.0,0.00024889,2]
[328646430,1717665039124,-500.0,0.00024889,2]
[328646431,1717665039133,-347.63330513,0.00024889,2]
[328646432,1717665039143,-151.0,0.0002489,2]
[328646433,1717665039152,-52585.52,0.0002489,3]
[328646434,1717665039162,-154.95351395,0.00024898,2]
[328646435,1717665039171,-302.57715745,0.00024898,2]
[328646436,1717665039181,-156.79013596,0.00024898,2]
[328646437,1717665039190,-156.901366,0.00024898,2]
[328646438,1717665039200,-664.37876443,0.00024898,2]
[328646439,1717665039209,-250.51955536,0.00024899,2]
[328646440,1717665039219,-37883.01293136,0.000249,7]
[328646441,1717665039228,-3989.73455123,0.000249,2]
[328646442,1717665039238,-225.05706064,0.000249,2]
[328646443,1717665039247,-12847.79131038,0.000249,2]
[328646444,1717665039256,-124339.56865464,0.000249,7]
[328646445,1717665039267,-151.0,0.000249,2]
[328646446,1717665039276,-151.0,0.000249,2]
[328646447,1717665039285,-151.0,0.000249,2]
[328646448,1717665039294,-151.0,0.000249,2]
[328646449,1717665039303,-151.0,0.000249,2]
[328646450,1717665039312,-156.565641,0.000249,2]
[328646451,1717665039321,-151.0,0.000249,2]
[328646452,1717665039331,-151.0,0.000249,2]
[328646453,1717665039340,-666.562233,0.000249,2]
[328646454,1717665039350,-151.0,0.000249,2]
[328646455,1717665039359,-666.562233,0.000249,2]
[328646456,1717665039369,-151.0,0.000249,2]
[328646457,1717665039378,-408.385951,0.000249,2]
[328646458,1717665039389,-408.385951,0.000249,2]
[328646459,1717665039399,-274.87047034,0.00024999,2]
[328646460,1717665039409,-1000.0,0.00025,10]
[328646461,1717665039419,-808.8597551,0.00025,2]
[328646462,1717665039430,-300.0,0.00025,2]
[328646463,1717665039440,-300.0,0.00025,2]
[328646464,1717665039450,-300.0,0.00025,2]
[328646465,1717665039460,-426.8,0.00025,2]
[328646466,1717665039469,-300.0,0.00025,2]
[328646467,1717665039479,-300.0,0.00025,2]
[328646468,1717665039488,-300.0,0.00025,2]
[328646469,1717665039498,-426.799999,0.00025,2]
[328646470,1717665039507,-160.0,0.00025,2]
[328646471,1717665039519,-286.33791892,0.00025,2]
[328646472,1717665039529,-401.88954213,0.00025,2]
[328646473,1717665039538,-544.4741016,0.00025,2]
[328646474,1717665039548,-631.08339972,0.00025033,2]
[328646475,1717665039557,-9128.46827562,0.000251,5]
[328646476,1717665039567,-88888.0,0.0002512,3]
[328646477,1717665039577,-666.562233,0.0002512,2]
[328646478,1717665039586,-151.0,0.0002512,2]
[328646479,1717665039596,-666.562233,0.0002512,2]
[328646480,1717665039605,-151.0,0.0002512,2]
[328646481,1717665039615,-408.385951,0.0002512,2]
[328646482,1717665039624,-408.385951,0.0002512,2]
[328646483,1717665039633,-154.95351395,0.0002518,2]
[328646484,1717665039643,-258.762208,0.0002522,2]
[328646485,1717665039653,-151.0,0.0002522,2]
[328646486,1717665039662,-158.004158,0.0002522,2]
[328646487,1717665039672,-151.0,0.0002522,2]
[328646488,1717665039682,-151.0,0.0002522,2]
[328646489,1717665039691,-154.001584,0.0002522,2]
[328646490,1717665039700,-154.001584,0.0002522,2]
[328646491,1717665039710,-2000.0,0.0002522,2]
[328646492,1717665039720,-151.0,0.0002522,2]
[328646493,1717665039729,-151.0,0.0002522,2]
[328646494,1717665039738,-151.0,0.0002522,2]
[328646495,1717665039748,-2264.77687905,0.0002532,7]
[328646496,1717665039757,-69611.75242142,0.0002532,2]
[328646497,1717665039767,-151.0,0.0002532,2]
[328646498,1717665039777,-292.526787,0.0002532,2]
[328646499,1717665039786,-151.0,0.0002532,2]
[328646500,1717665039795,-220.71981,0.0002532,2]
[328646501,1717665039805,-154.001584,0.0002532,2]
[328646502,1717665039815,-154.001584,0.0002532,2]
[328646503,1717665039824,-151.0,0.0002532,2]
[328646504,1717665039834,-151.0,0.0002532,2]
[328646505,1717665039848,-151.0,0.0002532,2]
[328646506,1717665039857,-666.562233,0.0002532,2]
[328646507,1717665039867,-151.0,0.0002532,2]
[328646508,1717665039876,-666.562233,0.0002532,2]
[328646509,1717665039887,-151.0,0.0002532,2]
[328646510,1717665039897,-408.385951,0.0002532,2]
[328646511,1717665039906,-408.385951,0.0002532,2]
[328646512,1717665039916,-270.0,0.000254,2]
[328646513,1717665039927,-270.0,0.000254,2]
[328646514,1717665039937,-300.0,0.000254,2]
[328646515,1717665039946,-300.0,0.000254,2]
[328646516,1717665039956,-541.0,0.000254,2]
[328646517,1717665039965,-541.0,0.000254,2]
[328646518,1717665039975,-229.0,0.000254,2]
[328646519,1717665039985,-713.18,0.0002543,4]
[328646520,1717665039994,-174.0,0.0002547,35]
[328646521,1717665040004,-737.30091357,0.00025472,2]
[328646522,1717665040014,-7366.84033526,0.00025473,2]
[328646523,1717665040023,-174.0,0.0002548,35]
[328646524,1717665040033,-174.0,0.0002549,35]
[328646525,1717665040043,-1154.71377429,0.00025497,2]
[328646526,1717665040051,-3945.0309938,0.00025497,2]
[328646527,1717665040061,-181.49597322,0.00025497,2]
[328646528,1717665040070,-783.88908174,0.00025497,2]
[328646529,1717665040079,-3068.30518334,0.00025497,2]
[328646530,1717665040089,-155.13321153,0.00025497,2]
[328646531,1717665040098,-411.23690711,0.00025497,2]
[328646532,1717665040107,-191.11457567,0.00025497,2]
[328646533,1717665040116,-220.20334648,0.00025497,2]
[328646534,1717665040125,-155.5291363,0.00025497,2]
[328646535,1717665040135,-6809.95935134,0.00025497,2]
[328646536,1717665040144,-10478.48667122,0.00025497,2]
[328646537,1717665040154,-710.56668851,0.00025497,2]
[328646538,1717665040164,-283.01518889,0.00025497,7]
[328646560,1717665043816,-477.94034108,0.00024654,2]
[328646561,1717665043925,-3758.33598754,0.00024654,2]
[328646562,1717665043935,-43821.26,0.0002489,3]
[328646563,1717665043944,-283.114535,0.000249,2]
[328646564,1717665043953,-283.114535,0.0002512,2]
[328646565,1717665043963,-283.114535,0.0002532,2]
[328646566,1717665043973,-1179.82566668,0.00025497,7]
[328646567,1717665043982,-473.8035364,0.00025497,2]
[328646568,1717665043991,-4183.61878309,0.00025497,2]
[328646569,1717665044000,-1595.7711844,0.00025497,2]
[328646570,1717665044009,-2490.36217374,0.00025497,2]
[328646571,1717665044019,-20661.38928237,0.00025497,2]
[328646572,1717665044027,-250.131838,0.00025497,2]
[328646573,1717665044036,-151.0,0.00025497,2]
[328646574,1717665044046,-151.0,0.00025497,2]
[328646575,1717665044055,-154.001584,0.00025497,2]
[328646576,1717665044064,-154.001584,0.00025497,2]
[328646577,1717665044073,-154.001584,0.00025497,2]
[328646578,1717665044083,-154.001584,0.00025497,2]
[328646579,1717665044092,-151.0,0.00025497,2]
[328646580,1717665044101,-151.0,0.00025497,2]
[328646581,1717665044111,-151.0,0.00025497,2]
[328646582,1717665044120,-151.0,0.00025497,2]
[328646583,1717665044129,-151.0,0.00025497,2]
[328646584,1717665044139,-151.0,0.00025497,2]
[328646585,1717665044148,-666.562233,0.00025497,2]
[328646586,1717665044157,-666.562233,0.00025497,2]
[328646587,1717665044167,-151.0,0.00025497,2]
[328646588,1717665044176,-151.0,0.00025497,2]
[328646589,1717665044185,-666.562233,0.00025497,2]
[328646590,1717665044195,-666.562233,0.00025497,2]
[328646591,1717665044204,-151.0,0.00025497,2]
[328646592,1717665044213,-151.0,0.00025497,2]
[328646593,1717665044223,-408.385951,0.00025497,2]
[328646594,1717665044231,-408.385951,0.00025497,2]
[328646595,1717665044240,-408.385951,0.00025497,2]
[328646596,1717665044249,-408.385951,0.00025497,2]
[328646597,1717665044259,-283.114535,0.00025497,2]
[328646598,1717665044268,-283.114535,0.00025497,2]
[328646599,1717665044278,-256.90112299,0.00025498,2]
[328646600,1717665044287,-157.87755474,0.00025498,2]
[328646601,1717665044296,-2071.63732022,0.00025498,2]
[328646602,1717665044305,-6134.053072,0.00025498,2]
[328646603,1717665044314,-154.9690062,0.00025498,2]
[328646604,1717665044410,-172.87098467,0.00025498,2]
[328646605,1717665044420,-19298.65138035,0.00025498,2]
[328646606,1717665044429,-170.71266282,0.00025498,2]
[328646607,1717665044439,-155.77869423,0.00025498,2]
[328646608,1717665044448,-310.73897395,0.00025498,10]
[328646609,1717665044458,-267.4820725,0.00025498,2]
[328646610,1717665044467,-156.5827208,0.00025498,2]
[328646611,1717665044477,-151.0,0.00025498,2]
[328646612,1717665044486,-154.001584,0.00025498,2]
[328646613,1717665044496,-154.001584,0.00025498,2]
[328646614,1717665044505,-158.508328,0.00025498,2]
[328646615,1717665044514,-151.0,0.00025498,2]
[328646616,1717665044524,-151.0,0.00025498,2]
[328646617,1717665044533,-666.562233,0.00025498,2]
[328646618,1717665044543,-151.0,0.00025498,2]
[328646619,1717665044552,-666.562233,0.00025498,2]
[328646620,1717665044562,-151.0,0.00025498,2]
[328646621,1717665044571,-408.385951,0.00025498,2]
[328646622,1717665044580,-408.385951,0.00025498,2]
[328646623,1717665044589,-39131.11806541,0.00025499,2]
[328646624,1717665044599,-228732.8420867,0.00025499,2]
[328646625,1717665044608,-151.0,0.00025499,2]
[328646626,1717665044617,-151.0,0.00025499,2]
[328646627,1717665044627,-154.001584,0.00025499,2]
[328646628,1717665044636,-154.001584,0.00025499,2]
[328646629,1717665044645,-154.001584,0.00025499,2]
[328646630,1717665044655,-154.001584,0.00025499,2]
[328646631,1717665044663,-151.0,0.00025499,2]
[328646632,1717665044673,-253.230945,0.00025499,2]
[328646633,1717665044682,-666.562233,0.00025499,2]
[328646634,1717665044690,-666.562233,0.00025499,2]
[328646635,1717665044699,-151.0,0.00025499,2]
[328646636,1717665044708,-151.0,0.00025499,2]
[328646637,1717665044717,-500.0,0.00025499,2]
[328646638,1717665044726,-666.562233,0.00025499,2]
[328646639,1717665044735,-666.562233,0.00025499,2]
[328646640,1717665044743,-266.127038,0.00025499,2]
[328646641,1717665044752,-151.0,0.00025499,7]
[328646642,1717665044761,-408.385951,0.00025499,2]
[328646643,1717665044771,-408.385951,0.00025499,2]
[328646644,1717665044780,-151.0,0.00025499,7]
[328646645,1717665044789,-408.385951,0.00025499,2]
[328646646,1717665044799,-408.385951,0.00025499,2]
[328646647,1717665044808,-1458913.13706464,0.000255,60]
[328646693,1717665092725,291.77473267,0.00014999,2]
[328646694,1717665131185,372.42677625,9.999e-05,2]
[328646757,1717666233003,-984.01825298,0.00019828,2]
[328646760,1717666233016,-23915.98174702,0.00019828,2]
[328646762,1717666233025,-585.8590925,0.00019831,2]
[328646764,1717666233035,-1500.09697047,0.00019998,2]
[328646766,1717666233044,-500.0,0.00019998,2]
[328646768,1717666233053,-1341.97127634,0.00019998,2]
[328646770,1717666233063,-275.36212988,0.00019998,2]
[328646772,1717666233074,-181.85934055,0.00019998,2]
[328646774,1717666233083,-685.80898577,0.00019998,2]
[328646776,1717666233093,-154.95351395,0.00019999,2]
[328646778,1717666233102,-2309.02808388,0.00019999,2]
[328646784,1717666238778,-566.70581098,0.000189,2]
[328646785,1717666238787,-168.49559779,0.00019899,2]
[328646786,1717666238797,-5427.83745749,0.00019999,2]
[328646787,1717666238807,-558.35669234,0.0002,2]
[328646788,1717666238817,-166.666666,0.00021644,2]
[328646789,1717666238826,-250.0,0.00022431,2]
[328646790,1717666238835,-566.70581098,0.000239,2]
[328646791,1717666238844,-6452.35053091,0.00024,2]
[328646792,1717666238854,-285.0,0.00024,2]
[328646793,1717666238864,-171.527899,0.00024009,2]
[328646794,1717666238873,-762.53852719,0.00024897,2]
[328646795,1717666238883,-158.94411947,0.00024898,2]
[328646796,1717666238893,-181.06507259,0.00024899,2]
[328646797,1717666238903,-339.44996299,0.00024899,2]
[328646798,1717666238912,-598.58373873,0.000249,10]
[328646799,1717666238922,-296.4873533,0.00025,2]
[328646800,1717666238932,-300.0,0.00025,2]
[328646801,1717666238942,-300.0,0.00025,2]
[328646802,1717666238951,-300.0,0.00025,2]
[328646803,1717666238961,-426.799999,0.00025,2]
[328646804,1717666238970,-5000.0,0.00025,14]
[328646806,1717666238980,-401.88954213,0.00025095,2]
[328646807,1717666238990,-153.0,0.00025096,2]
[328646808,1717666238999,-153.0,0.00025096,2]
[328646809,1717666239009,-153.0,0.00025096,2]
[328646810,1717666239020,-153.0,0.00025096,2]
[328646811,1717666239030,-156.49544705,0.00025244,2]
[328646812,1717666239040,-500.0,0.00025251,2]
[328646813,1717666239049,-500.0,0.00025251,2]
[328646814,1717666239058,-566.03841255,0.00025251,2]
[328646815,1717666239067,-200.0,0.00025251,2]
[328646816,1717666239078,-500.0,0.00025251,2]
[328646817,1717666239087,-500.0,0.00025251,2]
[328646818,1717666239097,-500.0,0.00025251,2]
[328646819,1717666239107,-500.0,0.00025251,2]
[328646820,1717666239117,-500.0,0.00025251,2]
[328646821,1717666239127,-500.0,0.00025251,2]
[328646822,1717666239137,-500.0,0.00025251,2]
[328646823,1717666239147,-500.0,0.00025251,2]
[328646824,1717666239157,-500.0,0.00025251,2]
[328646825,1717666239167,-583.8551692,0.0002537,2]
[328646826,1717666239176,-153.0,0.0002537,2]
[328646827,1717666239186,-205.1548009,0.0002537,2]
[328646828,1717666239196,-153.0,0.0002537,2]
[328646829,1717666239205,-205.1548009,0.0002537,2]
[328646830,1717666239215,-153.0,0.0002537,2]
[328646831,1717666239229,-205.1548009,0.0002537,2]
[328646832,1717666239239,-153.0,0.0002537,2]
[328646833,1717666239248,-205.1548009,0.0002537,2]
[328646834,1717666239259,-153.0,0.0002537,2]
[328646835,1717666239269,-205.1548009,0.0002537,2]
[328646836,1717666239279,-306.0,0.0002537,2]
[328646837,1717666239289,-203.7108836,0.0002537,2]
[328646838,1717666239299,-204.985722,0.0002537,2]
[328646839,1717666239311,-500.0,0.00025389,2]
[328646840,1717666239321,-328.67637365,0.00025389,2]
[328646841,1717666239331,-412.4951883,0.00025389,2]
[328646842,1717666239340,-36517.72,0.0002539,3]
[328646843,1717666239350,-4236.27632862,0.00025392,2]
[328646844,1717666239360,-18941.50646568,0.000254,7]
[328646845,1717666239370,-300.0,0.000254,2]
[328646846,1717666239379,-55876.73984956,0.000254,3]
[328646847,1717666239388,-160.0,0.000254,2]
[328646848,1717666239398,-2000.0,0.000254,2]
[328646849,1717666239407,-150.5,0.0002547,35]
[328646850,1717666239417,-150.5,0.0002548,35]
[328646851,1717666239426,-150.5,0.0002549,35]
[328646852,1717666239436,-206.90996608,0.00025498,2]
[328646853,1717666239553,-500.0,0.00025499,2]
[328646854,1717666239562,-5132.38843953,0.000255,7]
[328646855,1717666239572,-408585.98868979,0.000255,60]
[328646856,1717666239585,-7957.37965943,0.000255,60]
[328646857,1717666239597,-5265.89292999,0.000255,60]
[328646858,1717666239623,-11960.03324437,0.000255,60]
[328646881,1717666245484,-153.0,0.00025096,2]
[328646882,1717666245494,-437.39943845,0.0002539,3]
[328646883,1717666245505,-10432.86366764,0.0002539,3]
[328646909,1717666791747,154.95351395,9.999e-05,2]
[328646910,1717666791934,524.11356144,9.999e-05,2]
[328646911,1717666791973,158.96879947,9.999e-05,2]
[328646912,1717666798903,284.42018081,0.000137,2]
[328646913,1717666800588,529.97215195,9.999e-05,2]
[328646914,1717666802316,926.96947987,9.999e-05,2]
[328646915,1717666802406,154.95351395,9.999e-05,2]
[328646916,1717666804523,303.11673738,9.999e-05,2]
[328646917,1717666805430,292.39507624,9.999e-05,2]
[328646918,1717666808326,721.95297279,9.999e-05,2]
[328646919,1717666809710,2094.29381727,9.999e-05,2]
[328646920,1717666810033,282.32326129,9.999e-05,2]
[328646921,1717666810456,552.15459788,9.999e-05,2]
[328646922,1717666811870,241.86176735,9.999e-05,2]
[328646923,1717666814529,945.32067944,0.00015,2]
[328646924,1717666815490,515.33926844,9.998e-05,2]
[328646925,1717666817252,154.95351395,9.999e-05,2]
[328646926,1717666817446,208.27306209,9.998e-05,2]
[328646927,1717666819028,154.95351395,9.999e-05,2]
[328646928,1717666820269,164.54831723,9.999e-05,2]
[328646929,1717666825854,2094.29381727,9.999e-05,2]
[328646930,1717666832989,202.21809361,9.999e-05,2]
[328646931,1717666841626,988.35734032,9.999e-05,2]
[328646932,1717667156203,156.8401175,9.999e-05,2]
[328646933,1717667164459,837.71685131,9.999e-05,2]
[328646966,1717667432140,-303.11673738,0.00016241,2]
[328646967,1717667432149,-211.45901262,0.00016242,2]
[328646983,1717667438145,-282.32326129,0.0001624,2]
[328646984,1717667438154,-340.69558526,0.00016242,2]
[328646985,1717667438164,-250.0,0.00016243,2]
[328646986,1717667438174,-721.95297279,0.00016292,2]
[328646987,1717667438183,-310.3538922,0.00016293,2]
[328646988,1717667438193,-1500.61628881,0.00016735,2]
[328646989,1717667438202,-515.33926844,0.00016736,2]
[328646990,1717667438211,-164.54831723,0.00016737,2]
[328646992,1717667438221,-154.95351395,0.00016737,2]
[328646993,1717667438231,-1342.40609524,0.00016738,2]
[328646994,1717667438240,-181.91947349,0.00016738,2]
[328646995,1717667438250,-686.02573019,0.00016738,2]
[328646996,1717667438259,-316.6757389,0.00016748,2]
[328646997,1717667438268,-722.9826747,0.00017377,2]
[328646998,1717667438277,-6799.8351528,0.000183,2]
[328646999,1717667438287,-24900.0,0.00018419,2]
[328647000,1717667438296,-2558.4933398,0.0001849,2]
[328647001,1717667438305,-228.611057,0.00018514,2]
[328647002,1717667438314,-659.9278516,0.00018895,2]
[328647003,1717667438323,-292.06180465,0.00019041,2]
[328647004,1717667438332,-167.631425,0.00019322,2]
[328647006,1717667438433,-5955.5950052,0.00019468,2]
[328647007,1717667438445,-152.50950349,0.000198,2]
[328647008,1717667438455,-152.50950349,0.000198,2]
[328647009,1717667438464,-4096.98853548,0.0002,2]
[328647010,1717667438474,-837.71685131,0.00021395,2]
[328647011,1717667438483,-500.0,0.00021395,2]
[328647012,1717667438493,-500.0,0.00021395,2]
[328647013,1717667438501,-500.0,0.00021395,2]
[328647014,1717667438511,-456.60384125,0.00021395,2]
[328647015,1717667438520,-500.0,0.00021395,2]
[328647016,1717667438529,-500.0,0.00021395,2]
[328647017,1717667438538,-500.0,0.00021395,2]
[328647018,1717667438547,-500.0,0.00021395,2]
[328647019,1717667438556,-500.0,0.00021395,2]
[328647020,1717667438566,-500.0,0.00021395,2]
[328647021,1717667438575,-500.0,0.00021395,2]
[328647022,1717667438587,-500.0,0.00021395,2]
[328647023,1717667438598,-500.0,0.00021395,2]
[328647024,1717667438607,-500.0,0.00021395,2]
[328647025,1717667438616,-500.0,0.00021395,2]
[328647026,1717667438626,-500.0,0.00021395,2]
[328647027,1717667438636,-171.91882143,0.00021395,2]
[328647028,1717667438646,-20122.07227364,0.00021398,2]
[328647029,1717667438655,-166.666666,0.00021644,2]
[328647030,1717667438667,-156.8401175,0.00022297,2]
[328647031,1717667438676,-1070.14169299,0.000223,2]
[328647032,1717667438686,-2121.93992794,0.00023,2]
[328647033,1717667438695,-188.90193699,0.0002329,2]
[328647034,1717667438705,-543.00321039,0.00024,2]
[328647035,1717667438714,-762.53852719,0.000244,2]
[328647036,1717667438724,-153.0,0.00024541,2]
[328647037,1717667438733,-152.27957464,0.00024773,2]
[328647038,1717667438744,-620.55416999,0.00024971,2]
[328647039,1717667438754,-300.0,0.00025,2]
[328647040,1717667438763,-300.0,0.00025,2]
[328647041,1717667438772,-300.0,0.00025,2]
[328647042,1717667438782,-426.799999,0.00025,2]
[328647043,1717667438791,-1000.0,0.00025,6]
[328647044,1717667438801,-401.88954213,0.00025108,2]
[328647045,1717667438810,-151.0,0.00025109,2]
[328647046,1717667438819,-259.41,0.0002523,3]
[328647047,1717667438828,-518.83,0.0002524,3]
[328647048,1717667438839,-23849.77,0.0002524,3]
[328647049,1717667438848,-391.06936641,0.00025249,2]
[328647050,1717667438858,-28619.72,0.0002525,3]
[328647051,1717667438868,-23766.91107477,0.000253,3]
[328647052,1717667438877,-418.2732194,0.0002537,2]
[328647053,1717667438887,-155.3086056,0.00025388,2]
[328647054,1717667438896,-2035.10504658,0.00025388,2]
[328647055,1717667438906,-155.20500085,0.00025388,2]
[328647056,1717667438916,-1154.71377429,0.00025388,2]
[328647057,1717667438925,-309.87604958,0.00025388,2]
[328647058,1717667438934,-305.3780539,0.00025388,2]
[328647059,1717667438944,-691.90816563,0.00025388,2]
[328647060,1717667438955,-155.09215115,0.00025388,2]
[328647061,1717667438964,-155.00141345,0.00025388,2]
[328647062,1717667438974,-194.93299377,0.00025388,2]
[328647063,1717667438984,-1902.27689005,0.00025388,2]
[328647064,1717667438993,-317.21490521,0.00025388,2]
[328647065,1717667439003,-156.83678931,0.00025388,2]
[328647066,1717667439012,-523.75050212,0.00025388,2]
[328647067,1717667439021,-158.85250927,0.00025388,2]
[328647068,1717667439031,-284.22774733,0.00025388,2]
[328647069,1717667439042,-529.61140751,0.00025388,2]
[328647070,1717667439052,-929.41868271,0.00025388,2]
[328647071,1717667439062,-154.95351395,0.00025388,2]
[328647072,1717667439071,-241.69907593,0.00025388,2]
[328647073,1717667439082,-944.70936314,0.00025388,2]
[328647074,1717667439093,-190.92895619,0.00025388,2]
[328647075,1717667439103,-155.23854422,0.00025388,2]
[328647076,1717667439112,-208.13580143,0.00025388,2]
[328647077,1717667439121,-3205.94944129,0.00025389,2]
[328647078,1717667439132,-9581.0500174,0.00025389,2]
[328647079,1717667439142,-2640.4246397,0.00025389,2]
[328647080,1717667439152,-2011.75590866,0.00025389,2]
[328647081,1717667439163,-659.24463131,0.00025389,2]
[328647082,1717667439173,-9470.75323284,0.0002539,7]
[328647083,1717667439183,-124339.56865464,0.0002539,7]
[328647084,1717667439194,-3989.73455123,0.0002539,2]
[328647085,1717667439204,-2633.88311394,0.0002539,2]
[328647086,1717667439213,-225.05706064,0.0002539,2]
[328647087,1717667439224,-1580.21153198,0.0002539,2]
[328647088,1717667439235,-154.95351395,0.0002539,2]
[328647089,1717667439245,-12847.79131038,0.0002539,2]
[328647090,1717667439255,-1178.83735223,0.0002539,2]
[328647091,1717667439265,-300.0,0.000254,2]
[328647092,1717667439275,-160.0,0.000254,2]
[328647093,1717667439285,-425.83164486,0.000254,2]
[328647094,1717667439295,-188.31553786,0.00025498,2]
[328647095,1717667439305,-437.80693474,0.00025499,2]
[328647096,1717667439315,-2566.19421976,0.000255,7]
[328647097,1717667439325,-224162.6783746,0.000255,60]
[328647098,1717667439340,-314.47399217,0.000255,60]
[328647099,1717667439351,-1296.3635318,0.000255,60]
[328647100,1717667439363,-1622.37692451,0.000255,60]
[328647106,1717667441673,-4236.27632862,0.00025343,2]
[328647108,1717667441683,-1701.62349243,0.000255,60]
[328647112,1717667441825,-6016.00571347,0.000255,60]
[328647147,1717667458829,155.42138466,0.00015,2]
[328647155,1717667628911,154.95351395,9.999e-05,2]
[328647156,1717667684859,187.15318222,9.999e-05,2]
[328647160,1717667720206,155.2273967,9.999e-05,2]
[328647165,1717668068510,5480.64,0.00025192,90]
[328647198,1717668632314,-282.32326129,0.00019961,2]
[328647199,1717668632325,-156.8401175,0.00019962,2]
[328647200,1717668632335,-686.02573019,0.00019963,2]
[328647201,1717668632346,-181.91947349,0.00019964,2]
[328647202,1717668632355,-164.54831723,0.00019964,2]
[328647203,1717668632365,-154.95351395,0.00019964,2]
[328647204,1717668632375,-1295.14791779,0.0002,2]
[328647205,1717668632385,-166.666666,0.00021644,2]